bitfinex/quotes_ETHUSD_20230102
["timestamp","ask_amount","ask_price","bid_price","bid_amount"]
[1672680906622,3.06983013,1217.3,1217.2,17.08419004]
[1672680906873,3.06983013,1217.3,1217.2,25.29976004]
[1672680907249,3.06983013,1217.3,1217.2,28.29976004]
[1672680907449,5.68703055,1217.3,1217.2,28.78214386]
[1672680916866,5.68703055,1217.3,1217.2,28.77821341]
[1672680921741,5.68703055,1217.3,1217.2,28.52582959]
[1672680922317,5.68703055,1217.3,1217.2,28.77821341]
[1672680924283,2.61720042,1217.3,1217.2,28.77821341]
[1672680926488,5.68703055,1217.3,1217.2,28.77821341]
[1672680928805,2.61720042,1217.3,1217.2,28.77821341]
[1672680936903,5.68703055,1217.3,1217.2,28.77821341]
[1672680937436,5.68703055,1217.3,1217.2,28.52582959]
[1672680937801,5.68703055,1217.3,1217.2,28.77821341]
[1672680940377,5.68703055,1217.3,1217.2,28.77455691]
[1672680944084,5.68703055,1217.3,1217.2,32.92341805]
[1672680944916,5.68703055,1217.3,1217.2,33.93841805]
[1672680945788,2.61720042,1217.3,1217.2,34.95341805]
[1672680946955,2.61720042,1217.3,1217.2,40.97850517]
[1672680947127,0.06000013,1217.5,1217.4,4.0]
[1672680947334,4.36649615,1217.7,1217.4,28.81430114]
[1672680947585,4.36649615,1217.7,1217.6,32.85148]
[1672680947586,3.68379615,1217.7,1217.6,32.85148]
[1672680947803,3.68379615,1217.7,1217.6,34.19548]
[1672680947953,8.68379615,1217.7,1217.6,37.44786382]
[1672680948164,5.0,1217.7,1217.6,37.44786382]
[1672680948382,13.05589615,1217.8,1217.6,37.44786382]
[1672680948624,12.98989615,1217.8,1217.7,3.23]
[1672680948854,4.30049615,1217.8,1217.7,27.8666]
[1672680949068,4.30049615,1217.8,1217.7,27.9656]
[1672680949765,4.91438267,1217.8,1217.7,27.9656]
[1672680951147,4.91438267,1217.8,1217.7,19.7534]
[1672680954220,4.29768267,1217.8,1217.7,3.099]
[1672680954384,14.92641346,1217.8,1217.7,3.0]
[1672680954738,14.92641346,1217.8,1217.5,7.099]
[1672680954739,23.92197603,1217.8,1217.5,7.099]
[1672680954972,4.29424864,1217.7,1217.6,0.23]
[1672680955332,6.77745943,1217.8,1217.6,0.23]
[1672680955659,15.53775943,1217.8,1217.6,8.44287]
[1672680955864,15.53775943,1217.8,1217.7,3.0]
[1672680956109,28.74927943,1217.8,1217.6,0.329]
[1672680956264,36.96107092,1217.8,1217.6,0.23]
[1672680956475,36.96128092,1217.8,1217.6,0.23]
[1672680956981,28.74955092,1217.8,1217.6,0.23]
[1672680957530,20.53803092,1217.8,1217.6,0.23]
[1672680957773,3.68047791,1217.7,1217.6,0.23]
[1672680958056,19.19782013,1217.8,1217.6,8.44287]
[1672680958267,19.19782013,1217.8,1217.7,3.0]
[1672680958268,19.13182013,1217.8,1217.7,3.0]
[1672680958529,29.80412501,1217.8,1217.6,0.329]
[1672680958693,13.19042524,1217.7,1217.5,0.099]
[1672680959050,6.7899472,1217.6,1217.4,25.15996102]
[1672680959258,3.6803936,1217.5,1217.4,25.15996102]
[1672680960260,3.6823936,1217.5,1217.4,25.38696102]
[1672680960471,3.6803936,1217.5,1217.4,24.9707]
[1672680961653,4.7613936,1217.6,1217.4,28.22308382]
[1672680962006,4.6953936,1217.6,1217.5,19.4271]
[1672680962195,9.6953936,1217.6,1217.5,19.5261]
[1672680964062,9.6953936,1217.6,1217.5,27.73965]
[1672680964280,8.6803936,1217.6,1217.5,27.73965]
[1672680967785,8.6803936,1217.6,1217.5,19.52321938]
[1672680968838,3.6803936,1217.6,1217.5,19.52321938]
[1672680969891,8.6803936,1217.6,1217.5,19.52321938]
[1672680972977,8.6803936,1217.6,1217.5,27.73676938]
[1672680973719,8.6803936,1217.6,1217.5,19.52321938]
[1672680974385,8.6803936,1217.6,1217.5,27.73676938]
[1672680975235,5.0,1217.6,1217.5,11.30966938]
[1672680975626,8.68296637,1217.6,1217.5,27.73676938]
[1672680975835,9.9836472,1217.7,1217.5,27.73676938]
[1672680976188,13.06927905,1217.7,1217.5,27.73676938]
[1672680976400,9.06927905,1217.7,1217.5,27.73676938]
[1672680976610,13.06927905,1217.7,1217.5,27.73676938]
[1672680976832,5.0,1217.6,1217.5,19.52321938]
[1672680978507,9.2939472,1217.6,1217.5,11.30966938]
[1672680982816,4.2939472,1217.6,1217.5,11.30966938]
[1672680983813,9.2939472,1217.6,1217.5,11.30966938]
[1672680984920,9.2939472,1217.6,1217.5,27.73676938]
[1672680987823,5.0,1217.6,1217.5,27.9891532]
[1672680988038,5.0,1217.6,1217.5,28.2191532]
[1672680988682,9.2939472,1217.6,1217.5,28.2191532]
[1672680989440,4.2939472,1217.6,1217.5,28.2191532]
[1672680989822,5.3669472,1217.7,1217.5,28.2191532]
[1672680990035,5.3009472,1217.7,1217.6,0.23]
[1672680990242,6.007,1217.7,1217.6,8.44287]
[1672680990487,6.007,1217.7,1217.6,8.54187]
[1672680991448,6.007,1217.7,1217.6,8.53803356]
[1672680991654,10.31150863,1217.7,1217.6,8.53803356]
[1672680992246,6.007,1217.7,1217.6,8.53803356]
[1672680993308,11.08872524,1217.7,1217.6,8.53803356]
[1672680994595,11.03872524,1217.7,1217.6,8.53803356]
[1672680995488,6.03872524,1217.7,1217.6,8.53803356]
[1672680996439,11.03872524,1217.7,1217.6,8.53803356]
[1672680996895,10.08172524,1217.7,1217.6,8.53803356]
[1672681004540,5.08172524,1217.7,1217.6,8.53803356]
[1672681005367,5.08172524,1217.7,1217.6,16.75090356]
[1672681005703,10.08172524,1217.7,1217.6,16.75090356]
[1672681008054,10.08172524,1217.7,1217.6,8.53803356]
[1672681011538,5.08172524,1217.7,1217.6,8.53803356]
[1672681012591,10.08172524,1217.7,1217.6,8.53803356]
[1672681017964,10.08172524,1217.7,1217.6,8.53562393]
[1672681018575,5.08172524,1217.7,1217.6,8.53562393]
[1672681019602,10.08172524,1217.7,1217.6,8.53562393]
[1672681025823,5.08172524,1217.7,1217.6,8.53562393]
[1672681026643,10.08172524,1217.7,1217.6,8.53562393]
[1672681027359,10.08172524,1217.7,1217.6,0.32275393]
[1672681027708,12.69009444,1217.7,1217.6,0.22375393]
[1672681028028,37.32669444,1217.7,1217.5,2.99711938]
[1672681028243,9.30963116,1217.6,1217.5,2.99711938]
[1672681028389,5.0,1217.6,1217.5,3.22711938]
[1672681028600,5.0,1217.6,1217.5,11.44066938]
[1672681028909,9.3088771,1217.6,1217.5,11.53966938]
[1672681029064,9.30884636,1217.6,1217.5,11.53966938]
[1672681029250,9.30883494,1217.6,1217.5,19.75321938]
[1672681029464,9.30880338,1217.6,1217.5,19.75321938]
[1672681029702,9.30880338,1217.6,1217.5,11.53966938]
[1672681030130,5.0,1217.6,1217.5,11.53966938]
[1672681030495,10.08172524,1217.6,1217.5,11.53966938]
[1672681030706,5.0,1217.6,1217.5,11.53966938]
[1672681031228,5.0,1217.6,1217.5,19.75321938]
[1672681032863,9.30891457,1217.6,1217.5,19.75321938]
[1672681033286,5.0,1217.6,1217.5,19.75321938]
[1672681033598,5.0,1217.6,1217.5,11.53966938]
[1672681033599,9.30898105,1217.6,1217.5,11.53966938]
[1672681034185,9.30944914,1217.6,1217.5,11.53966938]
[1672681034402,5.0,1217.6,1217.5,11.53966938]
[1672681034588,9.30920238,1217.6,1217.5,11.53966938]
[1672681037454,4.30920238,1217.6,1217.5,11.53966938]
[1672681038662,5.0,1217.6,1217.5,11.53966938]
[1672681040315,5.0,1217.6,1217.5,3.32611938]
[1672681040520,5.0,1217.6,1217.5,3.22711938]
[1672681040732,10.08725633,1217.6,1217.5,3.22711938]
[1672681040944,12.85579256,1217.6,1217.5,2.99711938]
[1672681041182,13.86679256,1217.6,1217.5,2.99711938]
[1672681041349,13.86679256,1217.6,1217.4,3.099]
[1672681041350,30.29253256,1217.6,1217.4,3.099]
[1672681041560,4.30667819,1217.5,1217.4,3.0]
[1672681042481,4.30667819,1217.5,1217.4,2.99689048]
[1672681043175,3.69159816,1217.5,1217.4,27.63955048]
[1672681043489,3.69159816,1217.5,1217.4,27.58855048]
[1672681050311,3.69159816,1217.5,1217.4,28.0709343]
[1672681051819,3.75759816,1217.6,1217.5,4.0]
[1672681051967,3.69159816,1217.6,1217.5,31.64065]
[1672681052177,3.69159816,1217.6,1217.5,31.73965]
[1672681052434,3.69159816,1217.6,1217.5,31.99203382]
[1672681053854,3.69159816,1217.6,1217.5,32.22203382]
[1672681060532,3.69159816,1217.6,1217.5,28.22203382]
[1672681065425,3.75759816,1217.7,1217.5,28.22203382]
[1672681065635,3.69159816,1217.7,1217.6,3.0]
[1672681065885,8.69159816,1217.7,1217.6,27.63861]
[1672681066069,8.69159816,1217.7,1217.6,28.21999382]
[1672681066280,5.0,1217.7,1217.6,28.21999382]
[1672681067561,13.19897819,1217.8,1217.6,28.21999382]
[1672681067919,13.13297819,1217.8,1217.6,28.21999382]
[1672681068442,3.68927311,1217.7,1217.6,28.2174523]
[1672681072693,3.68927311,1217.7,1217.6,27.96506848]
[1672681072833,3.68927311,1217.7,1217.6,28.2174523]
[1672681078853,3.68927311,1217.7,1217.6,27.91506848]
[1672681079398,3.68927311,1217.7,1217.6,28.1674523]
[1672681080326,3.68927311,1217.7,1217.6,11.7417123]
[1672681080472,5.99550332,1217.7,1217.6,3.5288423]
[1672681080687,5.99550332,1217.7,1217.6,3.4298423]
[1672681081559,5.99550332,1217.7,1217.6,11.6427123]
[1672681081756,4.30667819,1217.7,1217.6,11.7417123]
[1672681082298,4.30667819,1217.7,1217.6,19.9545823]
[1672681083207,5.08725633,1217.7,1217.6,3.5288423]
[1672681083543,10.08725633,1217.7,1217.6,3.4298423]
[1672681083732,13.51714564,1217.7,1217.6,3.4298423]
[1672681084401,13.51714564,1217.7,1217.6,3.1998423]
[1672681084616,13.51714564,1217.7,1217.6,0.25238382]
[1672681084805,8.42988931,1217.7,1217.6,0.25238382]
[1672681085668,13.51714564,1217.7,1217.6,0.25238382]
[1672681090396,13.51714564,1217.7,1217.5,3.099]
[1672681090725,13.51714564,1217.7,1217.5,11.21348]
[1672681090726,4.30868525,1217.6,1217.5,11.21348]
[1672681090937,4.30868525,1217.6,1217.5,11.31248]
[1672681092507,4.30868525,1217.6,1217.5,19.52603]
[1672681093524,4.30868525,1217.6,1217.5,19.37603]
[1672681100473,4.30868525,1217.6,1217.5,19.60603]
[1672681100892,4.30868525,1217.6,1217.5,27.81958]
[1672681101153,3.69313553,1217.6,1217.5,28.07196382]
[1672681106539,6.08127301,1217.6,1217.5,28.07196382]
[1672681113242,2.38813748,1217.6,1217.5,28.07196382]
[1672681113455,6.08146529,1217.6,1217.5,28.07196382]
[1672681114028,6.08146529,1217.6,1217.5,28.0697977]
[1672681116927,6.08175228,1217.6,1217.5,28.0697977]
[1672681117272,2.38554364,1217.6,1217.5,28.0697977]
[1672681117429,6.07933036,1217.6,1217.5,28.0697977]
[1672681118909,2.38554364,1217.6,1217.5,28.0697977]
[1672681119329,6.0796126,1217.6,1217.5,28.0697977]
[1672681119623,2.38554364,1217.6,1217.5,28.0697977]
[1672681119744,6.07967596,1217.6,1217.5,28.0697977]
[1672681120171,2.38554364,1217.6,1217.5,28.0697977]
[1672681121273,6.07966069,1217.6,1217.5,28.0697977]
[1672681121873,2.38554364,1217.6,1217.5,28.0697977]
[1672681122369,6.69422889,1217.6,1217.5,28.0697977]
[1672681128875,6.69422889,1217.6,1217.5,27.81741388]
[1672681129234,6.69422889,1217.6,1217.5,28.0697977]
[1672681129912,6.07990584,1217.6,1217.5,28.0697977]
[1672681130614,6.07990584,1217.6,1217.5,32.21865884]
[1672681133953,6.07990584,1217.6,1217.5,32.11865884]
[1672681151733,6.07990584,1217.6,1217.5,31.86627502]
[1672681151938,6.07990584,1217.6,1217.5,32.11865884]
[1672681155623,6.07990584,1217.6,1217.5,32.11570032]
[1672681169650,6.07990584,1217.6,1217.5,31.8633165]
[1672681169891,6.07990584,1217.6,1217.5,32.11570032]
[1672681175668,6.07990584,1217.6,1217.5,31.8633165]
[1672681175669,6.69422889,1217.6,1217.5,31.8633165]
[1672681175876,6.69422889,1217.6,1217.5,32.11570032]
[1672681176426,6.69422889,1217.6,1217.5,27.96683918]
[1672681177391,6.69422889,1217.6,1217.5,27.96418863]
[1672681179641,6.69422889,1217.6,1217.5,19.75063863]
[1672681187423,6.69099063,1217.6,1217.5,19.75063863]
[1672681191623,6.69099063,1217.6,1217.5,27.96418863]
[1672681191797,6.0800447,1217.6,1217.5,27.96418863]
[1672681192834,2.38230538,1217.6,1217.5,27.96418863]
[1672681194251,6.07908533,1217.6,1217.5,27.96418863]
[1672681194466,2.38230538,1217.6,1217.5,27.96418863]
[1672681195057,6.07931398,1217.6,1217.5,27.96418863]
[1672681195285,2.38230538,1217.6,1217.5,27.96418863]
[1672681199484,6.07937022,1217.6,1217.5,27.96418863]
[1672681203953,2.38230538,1217.6,1217.5,27.96418863]
[1672681204776,6.07932996,1217.6,1217.5,27.96418863]
[1672681204988,2.38230538,1217.6,1217.5,27.96418863]
[1672681206836,6.07901644,1217.6,1217.5,27.96418863]
[1672681207278,2.38230538,1217.6,1217.5,27.96418863]
[1672681209714,2.38230538,1217.6,1217.5,27.71180481]
[1672681210045,2.38230538,1217.6,1217.5,27.96418863]
[1672681211500,2.38230538,1217.6,1217.5,27.96180841]
[1672681213515,6.69099063,1217.6,1217.5,27.96180841]
[1672681228140,6.69099063,1217.6,1217.5,27.70942459]
[1672681232305,6.69099063,1217.6,1217.5,27.70600632]
[1672681232521,6.69099063,1217.6,1217.5,27.95839014]
[1672681233798,6.69099063,1217.6,1217.5,27.70600632]
[1672681233965,6.69099063,1217.6,1217.5,27.95839014]
[1672681239664,6.08077377,1217.6,1217.5,27.95839014]
[1672681239867,5.66189377,1217.6,1217.5,27.95839014]
[1672681240100,7.09950865,1217.6,1217.5,27.95839014]
[1672681240328,10.79797704,1217.6,1217.5,27.95839014]
[1672681240818,11.75408288,1217.6,1217.5,27.95839014]
[1672681241713,11.75408288,1217.6,1217.5,3.31781014]
[1672681241881,11.75408288,1217.6,1217.5,27.85939014]
[1672681242092,11.75408288,1217.6,1217.5,27.95839014]
[1672681245028,11.75408288,1217.6,1217.5,28.37887296]
[1672681256017,11.75408288,1217.6,1217.5,31.98476449]
[1672681257938,11.75408288,1217.6,1217.5,36.13362563]
[1672681258174,11.13512009,1217.6,1217.5,36.13362563]
[1672681258553,11.13512009,1217.6,1217.5,32.5277341]
[1672681261216,11.13512009,1217.6,1217.5,32.52548584]
[1672681262791,11.13512009,1217.6,1217.5,32.03062584]
[1672681284305,11.13512009,1217.6,1217.5,32.02785192]
[1672681294448,11.13180216,1217.6,1217.5,32.02785192]
[1672681294872,8.05229656,1217.6,1217.5,32.02785192]
[1672681297103,11.75076495,1217.6,1217.5,32.02785192]
[1672681299121,11.75076495,1217.6,1217.5,31.7754681]
[1672681299295,11.75076495,1217.6,1217.5,32.02785192]
[1672681302910,0.062,1217.7,1217.6,28.63861]
[1672681303115,12.52266207,1217.8,1217.6,38.14047114]
[1672681303334,12.52266207,1217.8,1217.7,28.6486]
[1672681303482,3.69636207,1217.8,1217.7,28.9776]
[1672681304170,3.69636207,1217.8,1217.7,33.37884496]
[1672681304329,0.00200207,1217.8,1217.7,33.37584496]
[1672681304534,13.07768525,1218.0,1217.8,4.0]
[1672681304790,13.01168525,1218.0,1217.9,37.5224]
[1672681305127,18.01168525,1218.0,1217.9,37.87378382]
[1672681305338,9.30868525,1218.0,1217.9,37.87378382]
[1672681306006,4.30868525,1218.0,1217.9,37.87378382]
[1672681306213,4.37468525,1218.1,1217.9,37.87378382]
[1672681306479,4.30868525,1218.1,1217.9,37.87378382]
[1672681307583,4.30868525,1218.1,1217.9,42.02264496]
[1672681307958,4.30868525,1218.1,1217.9,21.45208382]
[1672681308158,4.92518525,1218.1,1217.9,21.45208382]
[1672681308317,4.30868525,1218.1,1217.9,21.45208382]
[1672681308605,4.30868525,1218.1,1217.9,13.24123382]
[1672681308790,4.30868525,1218.0,1217.9,11.79223382]
[1672681309480,4.30868525,1218.0,1217.9,3.58138382]
[1672681309787,4.30868525,1218.0,1217.9,3.48238382]
[1672681310527,4.30868525,1218.0,1217.9,19.90408382]
[1672681310700,2.46088037,1218.1,1217.9,47.36379408]
[1672681310913,0.01,1218.2,1218.1,4.0]
[1672681311272,4.30868525,1218.5,1218.3,8.20815]
[1672681311273,3.75579574,1218.5,1218.3,8.20815]
[1672681311417,3.68979574,1218.4,1218.3,16.5153]
[1672681311618,5.08725633,1218.4,1218.3,3.099]
[1672681311827,19.47159747,1218.4,1218.2,0.099]
[1672681312055,1.6274,1218.3,1218.0,30.049]
[1672681312274,1.6274,1218.3,1218.0,0.099]
[1672681312275,4.30499926,1218.1,1218.0,0.099]
[1672681312496,4.30499926,1218.1,1217.9,8.30981]
[1672681312689,3.68901617,1218.0,1217.9,8.30981]
[1672681313314,3.68901617,1218.0,1217.9,11.30981]
[1672681314138,3.68901617,1218.0,1217.9,3.099]
[1672681314410,3.68901617,1218.0,1217.9,11.21085]
[1672681314624,3.68901617,1218.0,1217.9,11.30985]
[1672681314834,4.1855161,1218.1,1217.9,19.5207]
[1672681314986,4.1855161,1218.1,1218.0,3.0]
[1672681314987,5.1345161,1218.1,1218.0,3.0]
[1672681317012,5.1345161,1218.1,1218.0,11.21018]
[1672681317251,4.70401617,1218.1,1218.0,11.30918]
[1672681318462,4.70401617,1218.1,1218.0,19.51936]
[1672681318882,4.70401617,1218.1,1218.0,27.72954]
[1672681321308,5.31999926,1218.1,1218.0,27.72954]
[1672681321646,4.30499926,1218.1,1218.0,27.72954]
[1672681324047,4.30499926,1218.1,1218.0,19.51936]
[1672681333701,13.99349926,1218.2,1218.0,19.51936]
[1672681333911,13.99349926,1218.2,1218.0,27.72954]
[1672681333912,13.92749926,1218.2,1218.0,27.72954]
[1672681334139,3.68848905,1218.1,1218.0,27.72954]
[1672681334381,3.68848905,1218.1,1218.0,27.95954]
[1672681335592,3.68848905,1218.1,1218.0,27.95698167]
[1672681336273,3.68848905,1218.1,1218.0,19.74680167]
[1672681336509,3.68848905,1218.1,1218.0,27.95698167]
[1672681337074,3.68848905,1218.1,1218.0,28.20936549]
[1672681338984,3.69048905,1218.1,1218.0,28.20636549]
[1672681339202,3.68848905,1218.1,1218.0,28.20936549]
[1672681342295,4.30499926,1218.1,1218.0,28.20936549]
[1672681342658,4.30499926,1218.1,1218.0,19.99918549]
[1672681346342,4.30499926,1218.1,1218.0,11.78900549]
[1672681348276,4.30499926,1218.1,1218.0,19.99918549]
[1672681351705,4.30499926,1218.1,1218.0,11.78900549]
[1672681353695,6.49917717,1218.1,1218.0,11.78900549]
[1672681355190,6.49917717,1218.1,1218.0,3.57882549]
[1672681355545,6.49917717,1218.1,1218.0,3.47982549]
[1672681355909,6.49917717,1218.1,1218.0,3.47716867]
[1672681357381,6.49917717,1218.1,1218.0,11.68734867]
[1672681357616,6.49917717,1218.1,1218.0,11.78634867]
[1672681361787,34.80600403,1218.1,1218.0,0.099]
[1672681361999,44.25439044,1218.1,1217.6,4.35138382]
[1672681362146,4.30954851,1217.9,1217.7,4.14886114]
[1672681362518,4.30954851,1217.9,1217.6,4.35138382]
[1672681362519,4.30954851,1217.8,1217.6,4.35138382]
[1672681362664,3.69381787,1217.7,1217.6,8.14886114]
[1672681362879,3.69381787,1217.7,1217.6,16.46065114]
[1672681363315,3.69381787,1217.7,1217.6,24.67352114]
[1672681363555,3.75981787,1217.8,1217.6,35.88639114]
[1672681363768,3.69381787,1217.7,1217.6,35.88639114]
[1672681363958,3.69381787,1217.7,1217.6,31.88639114]
[1672681364169,3.69381787,1217.7,1217.6,32.11639114]
[1672681364511,3.75981787,1217.8,1217.6,15.69065114]
[1672681364723,3.75981787,1217.8,1217.7,3.0]
[1672681364724,3.69381787,1217.8,1217.7,3.0]
[1672681364877,3.69381787,1217.8,1217.7,11.4422]
[1672681365087,3.69381787,1217.8,1217.7,11.5412]
[1672681370309,3.69381787,1217.8,1217.7,19.7534]
[1672681370459,3.69381787,1217.8,1217.7,11.5412]
[1672681370669,3.69381787,1217.8,1217.7,19.7534]
[1672681370670,4.56241451,1217.8,1217.7,19.7534]
[1672681371300,3.69381787,1217.8,1217.7,19.7534]
[1672681375412,8.69381787,1217.8,1217.7,19.7534]
[1672681376253,8.69381787,1217.8,1217.7,27.9656]
[1672681378823,8.69381787,1217.8,1217.7,27.96174375]
[1672681380882,8.69381787,1217.8,1217.7,19.74954375]
[1672681382805,3.69381787,1217.8,1217.7,19.74954375]
[1672681383857,8.69381787,1217.8,1217.7,19.74954375]
[1672681385812,11.00799741,1217.8,1217.7,19.74954375]
[1672681386465,10.80799741,1217.8,1217.7,19.74954375]
[1672681387906,8.99519413,1217.8,1217.7,3.32514375]
[1672681388084,16.6137464,1217.8,1217.6,0.099]
[1672681388245,9.30954851,1217.7,1217.3,38.26339]
[1672681388457,2.45481743,1217.5,1217.3,0.099]
[1672681388813,5.52333922,1217.5,1217.3,32.8596]
[1672681389033,5.52333922,1217.5,1217.3,32.9586]
[1672681389597,5.52333922,1217.5,1217.4,7.0]
[1672681389859,5.52333922,1217.5,1217.4,31.97166]
[1672681390232,5.52333922,1217.5,1217.4,27.97166]
[1672681393711,7.83122613,1217.5,1217.4,27.97166]
[1672681396448,4.76270434,1217.5,1217.4,27.97166]
[1672681397223,7.83122613,1217.5,1217.4,27.97166]
[1672681399264,5.3764087,1217.5,1217.4,27.97166]
[1672681399593,7.83335539,1217.5,1217.4,27.97166]
[1672681400228,5.3764087,1217.5,1217.4,27.97166]
[1672681401330,5.98976464,1217.5,1217.4,27.97166]
[1672681401936,2.30788691,1217.5,1217.4,27.97166]
[1672681402327,5.38141865,1217.5,1217.4,27.97166]
[1672681402533,2.30788691,1217.5,1217.4,27.97166]
[1672681402746,5.38143304,1217.5,1217.4,27.97166]
[1672681407108,5.38143304,1217.5,1217.4,27.96862765]
[1672681407841,5.38241228,1217.5,1217.4,27.96862765]
[1672681408833,5.38241228,1217.5,1217.4,28.22101147]
[1672681415096,5.37882151,1217.5,1217.4,28.22101147]
[1672681422040,2.46139787,1217.5,1217.4,37.45023147]
[1672681422255,2.46139787,1217.5,1217.4,41.59909261]
[1672681422431,2.46139636,1217.5,1217.4,41.59909261]
[1672681425178,3.74787773,1217.6,1217.4,41.59909261]
[1672681425342,3.68187773,1217.6,1217.5,28.87065]
[1672681425553,3.68187773,1217.6,1217.5,31.96965]
[1672681425814,3.68187773,1217.6,1217.5,32.22203382]
[1672681426397,3.68187773,1217.6,1217.5,28.22203382]
[1672681431818,3.68187773,1217.6,1217.5,20.00848382]
[1672681432029,3.68187773,1217.6,1217.5,11.79493382]
[1672681432600,12.58786851,1217.7,1217.5,3.58138382]
[1672681432753,4.30954851,1217.7,1217.6,3.0]
[1672681433082,9.30954851,1217.7,1217.6,3.23]
[1672681437831,11.46724276,1217.7,1217.6,3.23]
[1672681439050,7.15769425,1217.7,1217.6,3.23]
[1672681442108,2.15769425,1217.7,1217.6,3.23]
[1672681442730,7.15769425,1217.7,1217.6,3.23]
[1672681443734,8.86839237,1217.7,1217.6,3.0]
[1672681443903,39.21234655,1217.7,1217.5,3.35138382]
[1672681444105,39.21234655,1217.7,1217.5,3.25238382]
[1672681444769,8.30847251,1217.6,1217.5,3.25238382]
[1672681445036,32.94708251,1217.6,1217.5,3.48238382]
[1672681445331,22.85394655,1217.7,1217.5,3.48238382]
[1672681445332,31.06651655,1217.7,1217.5,3.48238382]
[1672681445542,4.3084423,1217.6,1217.5,3.47998711]
[1672681445972,12.5213123,1217.6,1217.5,3.47998711]
[1672681446397,4.3084423,1217.6,1217.5,3.47998711]
[1672681447289,4.3084423,1217.6,1217.5,11.69353711]
[1672681447498,4.3084423,1217.6,1217.5,20.00608711]
[1672681449387,4.3084423,1217.6,1217.5,11.79253711]
[1672681451858,4.3084423,1217.6,1217.5,3.57898711]
[1672681452177,4.3084423,1217.6,1217.5,3.47998711]
[1672681452327,4.3084423,1217.6,1217.5,3.24998711]
[1672681455329,4.3084423,1217.6,1217.5,11.46353711]
[1672681455496,4.3084423,1217.6,1217.5,11.56253711]
[1672681458023,4.3084423,1217.6,1217.5,3.34898711]
[1672681458228,4.3084423,1217.6,1217.5,3.24998711]
[1672681458453,4.3084423,1217.6,1217.5,11.46353711]
[1672681458791,4.3084423,1217.6,1217.5,11.56253711]
[1672681459171,4.3084423,1217.6,1217.5,11.31255]
[1672681465192,4.3084423,1217.6,1217.5,11.56493382]
[1672681465938,4.3084423,1217.6,1217.5,11.56265044]
[1672681471448,4.3084423,1217.6,1217.5,27.98975044]
[1672681472121,3.69635913,1217.6,1217.5,28.21975044]
[1672681487504,12.5213123,1217.6,1217.5,3.57910044]
[1672681487676,4.3084423,1217.6,1217.5,3.48010044]
[1672681488203,4.3084423,1217.6,1217.5,11.69365044]
[1672681488416,4.3084423,1217.6,1217.5,11.79265044]
[1672681489490,6.53213655,1217.7,1217.5,11.79265044]
[1672681489755,10.17289262,1217.7,1217.5,11.7892516]
[1672681490975,4.3084423,1217.6,1217.5,3.5757016]
[1672681491148,4.3084423,1217.6,1217.5,3.4767016]
[1672681500632,4.3084423,1217.6,1217.5,11.6902516]
[1672681500849,4.3084423,1217.6,1217.5,11.7892516]
[1672681512567,4.3084423,1217.6,1217.5,11.78610901]
[1672681519508,10.23889262,1217.7,1217.5,11.78610901]
[1672681519655,3.6966452,1217.6,1217.5,11.78610901]
[1672681520135,3.08093628,1217.6,1217.5,39.10275741]
[1672681520301,2.46498139,1217.6,1217.5,40.97009036]
[1672681520513,1.39e-06,1217.6,1217.5,40.97009036]
[1672681520703,5.23863053,1217.7,1217.6,4.0]
[1672681520919,5.23863053,1217.7,1217.6,17.09900328]
[1672681521248,5.23863053,1217.7,1217.6,36.36885496]
[1672681521464,2.15769425,1217.7,1217.6,36.36885496]
[1672681523388,2.15769425,1217.7,1217.6,38.39285496]
[1672681523989,2.15769425,1217.7,1217.6,44.11246053]
[1672681524205,2.15769425,1217.7,1217.6,38.39285496]
[1672681524673,2.15769425,1217.7,1217.6,44.11246053]
[1672681524827,2.15769425,1217.7,1217.6,38.39285496]
[1672681525249,2.15969425,1217.7,1217.6,38.38985496]
[1672681525500,2.15769425,1217.7,1217.6,38.39285496]
[1672681528883,2.52415988,1217.8,1217.6,38.39285496]
[1672681529047,2.45815988,1217.8,1217.7,8.39386114]
[1672681529245,2.45815988,1217.8,1217.7,33.12946114]
[1672681529459,2.45815988,1217.8,1217.7,33.38184496]
[1672681531929,7.76878958,1217.9,1217.7,33.38184496]
[1672681532137,7.70278958,1217.9,1217.8,1.006]
[1672681532297,7.70278958,1217.9,1217.8,29.87056]
[1672681532510,7.70278958,1217.9,1217.8,33.22194382]
[1672681533140,7.70278958,1217.9,1217.8,29.22194382]
[1672681535595,5.2446297,1217.9,1217.8,29.22194382]
[1672681535764,7.70067233,1217.9,1217.8,29.22194382]
[1672681538938,5.2446297,1217.9,1217.8,29.22194382]
[1672681539507,7.70050024,1217.9,1217.8,29.22194382]
[1672681541653,5.2446297,1217.9,1217.8,29.22194382]
[1672681541907,7.70056806,1217.9,1217.8,29.22194382]
[1672681544483,7.70056806,1217.9,1217.8,29.21819431]
[1672681544907,7.70056806,1217.9,1217.8,28.21594382]
[1672681546459,5.2446297,1217.9,1217.8,28.21594382]
[1672681551261,5.2446297,1217.9,1217.8,3.58138382]
[1672681551262,7.57694611,1217.9,1217.8,3.58138382]
[1672681551494,17.01619321,1217.9,1217.7,3.099]
[1672681551821,3.6859813,1217.8,1217.7,3.0]
[1672681551977,3.6859813,1217.8,1217.7,3.23]
[1672681552346,3.6879813,1217.8,1217.7,11.4422]
[1672681552665,3.6859813,1217.8,1217.7,11.5412]
[1672681552835,3.6859813,1217.8,1217.7,3.329]
[1672681553027,3.6859813,1217.8,1217.7,3.23]
[1672681554868,20.1090213,1217.8,1217.7,3.23]
[1672681555031,3.68823304,1217.8,1217.7,3.23]
[1672681555966,3.68957397,1217.8,1217.7,3.23]
[1672681557649,3.69116486,1217.8,1217.7,3.23]
[1672681559441,4.3084423,1217.8,1217.7,3.23]
[1672681562031,21.08229321,1217.9,1217.7,3.23]
[1672681562215,3.6930971,1217.8,1217.7,3.23]
[1672681562805,3.6930971,1217.8,1217.7,11.4422]
[1672681563008,3.6930971,1217.8,1217.7,3.329]
[1672681563160,3.6930971,1217.8,1217.7,3.23]
[1672681566209,3.6930971,1217.8,1217.7,11.4422]
[1672681566420,3.6930971,1217.8,1217.7,19.7534]
[1672681567629,3.6930971,1217.8,1217.7,19.75030047]
[1672681568000,3.6930971,1217.8,1217.7,11.53810047]
[1672681577285,3.6930971,1217.8,1217.7,19.75030047]
[1672681577801,3.6930971,1217.8,1217.7,11.53810047]
[1672681580313,3.6930971,1217.8,1217.7,19.75030047]
[1672681581388,3.6930971,1217.8,1217.7,11.53810047]
[1672681585469,4.3084423,1217.8,1217.7,11.53810047]
[1672681586303,8.87134321,1217.9,1217.7,11.53810047]
[1672681586518,12.80534321,1217.9,1217.7,3.32590047]
[1672681586813,12.80534321,1217.9,1217.7,3.22690047]
[1672681586978,4.3084423,1217.8,1217.7,3.22690047]
[1672681587192,3.69459036,1217.8,1217.7,11.43910047]